fUST/lending_fUST_20250916
["ID","MTS","AMOUNT","RATE_DAILY","PERIOD"]
[385761192,1758022258142,-168.13,0.00023013,3]
[385761193,1758022258151,-1738.71,0.00023013,3]
[385761194,1758022258160,-298.7213437,0.00023013,3]
[385761195,1758022258553,-2063164.69272908,0.00030209,20]
[385761196,1758022258579,-5108.89770272,0.00030209,30]
[385761197,1758022258607,-265224.87761551,0.00030209,20]
[385761198,1758022258633,-3996.81409923,0.00030209,30]
[385761199,1758022258728,-246596.8204,0.00030209,31]
[385761200,1758022258753,-6225.73651,0.00030209,30]
[385761201,1758022258777,-1201.15611096,0.00030209,30]
[385761202,1758022258802,-241334.80665297,0.00030209,20]
[385761203,1758022258827,-954.75355411,0.00030209,32]
[385761204,1758022258851,-153.08224058,0.00030209,30]
[385761205,1758022258875,-3523.08406569,0.00030209,30]
[385761206,1758022258901,-2000.0,0.00030209,30]
[385761207,1758022258927,-2000.0,0.00030209,30]
[385761208,1758022258952,-1074.3,0.00030209,30]
[385761209,1758022258977,-1207942.92356849,0.00030209,20]
[385761210,1758022259002,-706.32798866,0.00030209,30]
[385761211,1758022259026,-2120.099999,0.00030209,30]
[385761212,1758022259111,-480.0,0.00021917,2]
[385761213,1758022259121,-480.0,0.00021917,2]
[385761214,1758022259131,-480.0,0.00021917,2]
[385761215,1758022259140,-239.4758001,0.00021917,2]
[385761216,1758022259151,-241.73261151,0.00021917,2]
[385761217,1758022259161,-178.79158839,0.00021917,2]
[385761218,1758022259346,-301.20841161,0.00021917,2]
[385761219,1758022259355,-480.0,0.00021917,2]
[385761220,1758022259364,-485.28201622,0.00021917,2]
[385761221,1758022259374,-480.0,0.00021917,2]
[385761222,1758022259385,-480.0,0.00021917,2]
[385761223,1758022259396,-480.0,0.00022191,3]
[385761224,1758022259406,-480.0,0.00022191,3]
[385761225,1758022259416,-480.0,0.00022191,3]
[385761226,1758022259426,-480.0,0.00022191,3]
[385761227,1758022259435,-420.7,0.00022191,3]
[385761228,1758022259447,-264.8659026,0.00022465,3]
[385761229,1758022259457,-480.0,0.00022465,3]
[385761230,1758022259466,-480.0,0.00022739,3]
[385761231,1758022259476,-181.2786563,0.00023013,3]
[385761232,1758022259487,-413.09,0.00023013,3]
[385761233,1758022259496,-2566.21,0.00023013,3]
[385761234,1758022259505,-782.0,0.00023013,3]
[385761235,1758022259515,-480.0,0.00023013,3]
[385761236,1758022259524,-572.63,0.00023013,3]
[385761237,1758022259533,-480.0,0.00023013,3]
[385761238,1758022259542,-480.0,0.00023013,3]
[385761239,1758022259551,-525.05,0.00023013,3]
[385761240,1758022259561,-1748.53,0.00023013,3]
[385761241,1758022259571,-480.0,0.00023013,3]
[385761242,1758022259580,-168.31,0.00023013,3]
[385761243,1758022259589,-480.0,0.00023013,3]
[385761244,1758022259598,-480.0,0.00023013,3]
[385761245,1758022259607,-480.0,0.00023013,3]
[385761246,1758022259616,-480.0,0.00023013,3]
[385761247,1758022259625,-480.0,0.00023013,3]
[385761248,1758022259634,-1117.15,0.00023013,3]
[385761249,1758022259643,-615.18,0.00023013,3]
[385761250,1758022259653,-480.0,0.00023013,3]
[385761251,1758022259662,-959.69,0.00023013,3]
[385761252,1758022259672,-480.0,0.00023013,3]
[385761253,1758022259681,-480.0,0.00023013,3]
[385761254,1758022259690,-480.0,0.00023013,3]
[385761255,1758022259699,-2394.54,0.00023013,3]
[385761256,1758022259708,-480.0,0.00023013,3]
[385761257,1758022259718,-480.0,0.00023013,3]
[385761258,1758022259791,-480.0,0.00023013,3]
[385761259,1758022259801,-1011.97,0.00023013,3]
[385761260,1758022259810,-480.0,0.00023013,3]
[385761261,1758022259819,-480.0,0.00023013,3]
[385761262,1758022259828,-480.0,0.00023013,3]
[385761263,1758022259838,-553.5,0.00023013,3]
[385761264,1758022259848,-566.04,0.00023013,3]
[385761265,1758022259858,-480.0,0.00023013,3]
[385761266,1758022259869,-480.0,0.00023013,3]
[385761267,1758022259878,-480.0,0.00023013,3]
[385761268,1758022259888,-480.0,0.00023013,3]
[385761269,1758022259898,-10106.71,0.00023013,3]
[385761270,1758022259908,-480.0,0.00023013,3]
[385761271,1758022259917,-725.12,0.00023013,3]
[385761272,1758022259927,-480.0,0.00023013,3]
[385761273,1758022259936,-480.0,0.00023013,3]
[385761274,1758022259945,-231.4204598,0.00023013,3]
[385761275,1758022259954,-480.0,0.00023013,3]
[385761276,1758022259964,-480.0,0.00023013,3]
[385761277,1758022259974,-480.0,0.00023013,3]
[385761278,1758022259984,-480.0,0.00023013,3]
[385761279,1758022259994,-480.0,0.00023013,3]
[385761280,1758022260003,-504.22,0.00023013,3]
[385761281,1758022260012,-1154.29,0.00023013,3]
[385761282,1758022260022,-480.0,0.00023013,3]
[385761283,1758022260031,-758.06,0.00023013,3]
[385761284,1758022260041,-480.0,0.00023013,3]
[385761285,1758022260051,-480.0,0.00023013,3]
[385761286,1758022260060,-480.0,0.00023013,3]
[385761287,1758022260070,-480.0,0.00023013,3]
[385761288,1758022260079,-482.11812156,0.00023013,3]
[385761289,1758022260089,-480.0,0.00023013,3]
[385761290,1758022260098,-480.0,0.00023013,3]
[385761291,1758022260107,-480.0,0.00023013,3]
[385761292,1758022260116,-786.07,0.00023013,3]
[385761293,1758022260125,-2365.84,0.00023013,3]
[385761294,1758022260135,-480.0,0.00023013,3]
[385761295,1758022260144,-155.1691443,0.00023014,2]
[385761296,1758022260154,-300.0,0.00023021,2]
[385761297,1758022260163,-1000.0,0.00023021,2]
[385761298,1758022260172,-348.947231,0.00023021,2]
[385761299,1758022260181,-1500.0,0.00023068,2]
[385761300,1758022260191,-279.2,0.000231,2]
[385761301,1758022260200,-2031.25,0.000231,7]
[385761302,1758022260209,-151.0,0.000231,7]
[385761303,1758022260218,-168.0,0.00023108,2]
[385761304,1758022260228,-154.75225701,0.00023135,2]
[385761305,1758022260237,-260.0,0.00023158,2]
[385761306,1758022260246,-172.5,0.00023262,3]
[385761307,1758022260255,-188.21314842,0.00023268,3]
[385761308,1758022260264,-1153.45679359,0.00023268,2]
[385761309,1758022260274,-1500.0,0.00023268,2]
[385761310,1758022260283,-684.61647612,0.00023268,2]
[385761311,1758022260292,-1500.0,0.00023268,2]
[385761312,1758022260301,-1000.0,0.00023268,2]
[385761313,1758022260311,-1500.0,0.00023268,2]
[385761314,1758022260321,-1500.0,0.00023268,2]
[385761315,1758022260330,-1500.0,0.00023268,2]
[385761316,1758022260339,-1500.0,0.00023268,2]
[385761317,1758022260348,-160.52427307,0.00023286,2]
[385761318,1758022260357,-200.0,0.00023286,2]
[385761319,1758022260366,-200.0,0.00023286,2]
[385761320,1758022260376,-600.713433,0.00023287,2]
[385761321,1758022260385,-480.0,0.00023287,3]
[385761322,1758022260395,-522.4,0.00023287,3]
[385761323,1758022260404,-480.0,0.00023287,3]
[385761324,1758022260413,-480.0,0.00023287,3]
[385761325,1758022260423,-519.76,0.00023287,3]
[385761326,1758022260433,-480.0,0.00023287,3]
[385761327,1758022260442,-480.0,0.00023287,3]
[385761328,1758022260451,-480.0,0.00023287,3]
[385761329,1758022260464,-566.33,0.00023287,3]
[385761330,1758022260474,-480.0,0.00023287,3]
[385761331,1758022260483,-480.0,0.00023287,3]
[385761332,1758022260492,-480.0,0.00023287,3]
[385761333,1758022260503,-480.0,0.00023287,3]
[385761334,1758022260512,-480.0,0.00023287,3]
[385761335,1758022260521,-191.21016676,0.00023287,3]
[385761336,1758022260542,-480.0,0.00021917,2]
[385761337,1758022260552,-288.78983324,0.00023287,3]
[385761338,1758022260561,-414.18315676,0.00023287,3]
[385761339,1758022260570,-274.77190995,0.00023287,3]
[385761340,1758022260580,-627.45921655,0.00023287,3]
[385761341,1758022260589,-692.04,0.00023287,3]
[385761342,1758022260598,-480.0,0.00023287,3]
[385761343,1758022260607,-480.0,0.00023287,3]
[385761344,1758022260616,-480.0,0.00023287,3]
[385761345,1758022260627,-5000.29,0.00023287,3]
[385761346,1758022260636,-2083.27,0.00023287,3]
[385761347,1758022260645,-1738.71,0.00023287,3]
[385761348,1758022260655,-2566.21,0.00023287,3]
[385761349,1758022260664,-782.0,0.00023287,3]
[385761350,1758022260673,-480.0,0.00023287,3]
[385761351,1758022260683,-572.63,0.00023287,3]
[385761352,1758022260693,-480.0,0.00023287,3]
[385761353,1758022260703,-480.0,0.00023287,3]
[385761354,1758022260712,-525.05,0.00023287,3]
[385761355,1758022260720,-1748.53,0.00023287,3]
[385761356,1758022260730,-480.0,0.00023287,3]
[385761357,1758022260739,-480.0,0.00023287,3]
[385761358,1758022260749,-480.0,0.00023287,3]
[385761359,1758022260760,-480.0,0.00023287,3]
[385761360,1758022260771,-480.0,0.00023287,3]
[385761361,1758022260782,-480.0,0.00023287,3]
[385761362,1758022260792,-1117.15,0.00023287,3]
[385761363,1758022260803,-615.18,0.00023287,3]
[385761364,1758022260813,-480.0,0.00023287,3]
[385761365,1758022260823,-959.69,0.00023287,3]
[385761366,1758022260832,-480.0,0.00023287,3]
[385761367,1758022260841,-480.0,0.00023287,3]
[385761368,1758022260850,-480.0,0.00023287,3]
[385761369,1758022260860,-2394.54,0.00023287,3]
[385761370,1758022260926,-480.0,0.00023287,3]
[385761371,1758022260936,-480.0,0.00023287,3]
[385761372,1758022260945,-1011.97,0.00023287,3]
[385761373,1758022260954,-480.0,0.00023287,3]
[385761374,1758022260964,-480.0,0.00023287,3]
[385761375,1758022260974,-150.13,0.00023287,3]
[385761376,1758022260983,-553.5,0.00023287,3]
[385761377,1758022260992,-480.0,0.00023287,3]
[385761378,1758022261003,-480.0,0.00023287,3]
[385761379,1758022261013,-382.13254458,0.00023287,3]
[385761380,1758022261023,-480.0,0.00023287,3]
[385761381,1758022261031,-10106.71,0.00023287,3]
[385761382,1758022261040,-480.0,0.00023287,3]
[385761383,1758022261050,-725.12,0.00023287,3]
[385761384,1758022261059,-480.0,0.00023287,3]
[385761385,1758022261068,-480.0,0.00023287,3]
[385761386,1758022261077,-626.17235482,0.00023287,3]
[385761387,1758022261086,-480.0,0.00023287,3]
[385761388,1758022261095,-480.0,0.00023287,3]
[385761389,1758022261104,-480.0,0.00023287,3]
[385761390,1758022261112,-480.0,0.00023287,3]
[385761391,1758022261121,-504.22,0.00023287,3]
[385761392,1758022261130,-1154.29,0.00023287,3]
[385761393,1758022261139,-480.0,0.00023287,3]
[385761394,1758022261148,-758.06,0.00023287,3]
[385761395,1758022261158,-480.0,0.00023287,3]
[385761396,1758022261167,-480.0,0.00023287,3]
[385761397,1758022261176,-480.0,0.00023287,3]
[385761398,1758022261185,-509.98,0.00023287,3]
[385761399,1758022261194,-480.0,0.00023287,3]
[385761400,1758022261203,-1170.41,0.00023287,2]
[385761401,1758022261212,-480.0,0.00023287,3]
[385761402,1758022261221,-480.0,0.00023287,3]
[385761403,1758022261230,-786.07,0.00023287,3]
[385761404,1758022261239,-2365.84,0.00023287,3]
[385761405,1758022261248,-480.0,0.00023287,3]
[385761406,1758022261257,-172.0,0.00023291,2]
[385761407,1758022261266,-37605.15,0.000233,2]
[385761408,1758022261275,-2000.0,0.00023316,2]
[385761409,1758022261284,-2000.0,0.00023316,2]
[385761410,1758022261293,-172.0,0.00023332,2]
[385761411,1758022261302,-172.0,0.00023381,2]
[385761412,1758022261311,-172.0,0.00023416,2]
[385761413,1758022261320,-172.0,0.00023444,2]
[385761414,1758022261329,-151.0,0.0002345,7]
[385761415,1758022261338,-54269.08398108,0.0002345,5]
[385761416,1758022261347,-420.0,0.00023452,2]
[385761417,1758022261356,-300.0,0.00023452,2]
[385761418,1758022261365,-281.0,0.00023452,2]
[385761419,1758022261375,-212.0,0.00023452,2]
[385761420,1758022261384,-172.0,0.00023498,2]
[385761421,1758022261393,-172.0,0.00023514,2]
[385761422,1758022261402,-172.0,0.00023518,2]
[385761423,1758022261412,-200.0,0.0002356,2]
[385761424,1758022261421,-207.08031381,0.0002356,2]
[385761425,1758022261430,-200.0,0.00023561,2]
[385761426,1758022261440,-200.0,0.00023561,3]
[385761427,1758022261450,-227.90198871,0.00023561,3]
[385761428,1758022261463,-480.0,0.00023561,3]
[385761429,1758022261472,-480.0,0.00023561,3]
[385761430,1758022261481,-480.0,0.00023561,3]
[385761431,1758022261491,-519.76,0.00023561,3]
[385761432,1758022261500,-480.0,0.00023561,3]
[385761433,1758022261510,-480.0,0.00023561,3]
[385761434,1758022261519,-480.0,0.00023561,3]
[385761435,1758022261528,-480.0,0.00023561,3]
[385761436,1758022261537,-480.0,0.00023561,3]
[385761437,1758022261547,-480.0,0.00023561,3]
[385761438,1758022261556,-480.0,0.00023561,3]
[385761439,1758022261565,-480.0,0.00023561,3]
[385761440,1758022261575,-269.12652109,0.00023561,3]
[385761441,1758022261584,-692.04,0.00023561,3]
[385761442,1758022261594,-480.0,0.00023561,3]
[385761443,1758022261603,-480.0,0.00023561,3]
[385761444,1758022261613,-480.0,0.00023561,3]
[385761445,1758022261623,-5000.29,0.00023561,3]
[385761446,1758022261633,-2083.27,0.00023561,3]
[385761447,1758022261642,-1738.71,0.00023561,3]
[385761448,1758022261651,-2566.21,0.00023561,3]
[385761449,1758022261660,-782.0,0.00023561,3]
[385761450,1758022261670,-480.0,0.00023561,3]
[385761451,1758022261679,-572.63,0.00023561,3]
[385761452,1758022261689,-480.0,0.00023561,3]
[385761453,1758022261698,-480.0,0.00023561,3]
[385761454,1758022261707,-525.05,0.00023561,3]
[385761455,1758022261717,-1748.53,0.00023561,3]
[385761456,1758022261726,-480.0,0.00023561,3]
[385761457,1758022261735,-480.0,0.00023561,3]
[385761458,1758022261745,-233.70334137,0.00023561,3]
[385761459,1758022261753,-480.0,0.00023561,3]
[385761460,1758022261764,-590.60809945,0.00023561,3]
[385761461,1758022261773,-480.0,0.00023561,3]
[385761462,1758022261782,-1117.15,0.00023561,3]
[385761463,1758022261791,-615.18,0.00023561,3]
[385761464,1758022261800,-480.0,0.00023561,3]
[385761465,1758022261810,-959.69,0.00023561,3]
[385761466,1758022261819,-480.0,0.00023561,3]
[385761467,1758022261827,-480.0,0.00023561,3]
[385761468,1758022261836,-480.0,0.00023561,3]
[385761469,1758022261846,-2394.54,0.00023561,3]
[385761470,1758022261854,-480.0,0.00023561,3]
[385761471,1758022261864,-480.0,0.00023561,3]
[385761472,1758022261873,-1011.97,0.00023561,3]
[385761473,1758022261882,-480.0,0.00023561,3]
[385761474,1758022261942,-480.0,0.00023561,3]
[385761475,1758022261957,-553.5,0.00023561,3]
[385761476,1758022261967,-480.0,0.00023561,3]
[385761477,1758022261976,-480.0,0.00023561,3]
[385761478,1758022261985,-480.0,0.00023561,3]
[385761479,1758022261995,-10106.71,0.00023561,3]
[385761480,1758022262003,-480.0,0.00023561,3]
[385761481,1758022262012,-725.12,0.00023561,3]
[385761482,1758022262021,-480.0,0.00023561,3]
[385761483,1758022262031,-480.0,0.00023561,3]
[385761484,1758022262040,-480.0,0.00023561,3]
[385761485,1758022262049,-480.0,0.00023561,3]
[385761486,1758022262059,-480.0,0.00023561,3]
[385761487,1758022262069,-480.0,0.00023561,3]
[385761488,1758022262078,-504.22,0.00023561,3]
[385761489,1758022262088,-1154.29,0.00023561,3]
[385761490,1758022262099,-480.0,0.00023561,3]
[385761491,1758022262109,-758.06,0.00023561,3]
[385761492,1758022262119,-480.0,0.00023561,3]
[385761493,1758022262130,-480.0,0.00023561,3]
[385761494,1758022262139,-480.0,0.00023561,3]
[385761495,1758022262151,-480.0,0.00023561,3]
[385761496,1758022262161,-480.0,0.00023561,3]
[385761497,1758022262171,-480.0,0.00023561,3]
[385761498,1758022262184,-786.07,0.00023561,3]
[385761499,1758022262194,-2365.84,0.00023561,3]
[385761500,1758022262203,-480.0,0.00023561,3]
[385761501,1758022262212,-359.43732988,0.00023568,2]
[385761502,1758022262222,-1500.0,0.00023568,2]
[385761503,1758022262232,-150.06872729,0.0002359,2]
[385761504,1758022262242,-168.0,0.00023599,2]
[385761505,1758022262256,-2000.0,0.00023616,2]
[385761506,1758022262266,-172.0,0.00023651,2]
[385761507,1758022262275,-360.0,0.00023706,2]
[385761508,1758022262285,-172.0,0.00023708,2]
[385761509,1758022262295,-172.0,0.0002371,2]
[385761510,1758022262304,-168.0,0.00023724,2]
[385761511,1758022262315,-5475.02532086,0.00023735,2]
[385761512,1758022262326,-4106.22,0.000238,7]
[385761513,1758022262335,-500.0,0.00023816,2]
[385761514,1758022262348,-2000.0,0.00023816,2]
[385761515,1758022262357,-2000.0,0.00023816,2]
[385761516,1758022262367,-741.93078659,0.00023816,2]
[385761517,1758022262376,-2000.0,0.00023816,2]
[385761518,1758022262386,-202.65458953,0.00023834,2]
[385761519,1758022262395,-480.0,0.00023835,3]
[385761520,1758022262405,-480.0,0.00023835,3]
[385761521,1758022262414,-480.0,0.00023835,3]
[385761522,1758022262424,-519.76,0.00023835,3]
[385761523,1758022262442,-480.0,0.00023835,3]
[385761524,1758022262461,-480.0,0.00023835,3]
[385761525,1758022262478,-480.0,0.00023835,3]
[385761526,1758022262496,-480.0,0.00023835,3]
[385761527,1758022262515,-480.0,0.00023835,3]
[385761528,1758022262531,-575.45457217,0.00023835,3]
[385761529,1758022262548,-480.0,0.00023835,3]
[385761530,1758022262564,-480.0,0.00023835,3]
[385761531,1758022262579,-692.04,0.00023835,3]
[385761532,1758022262597,-245.10932097,0.00023835,3]
[385761533,1758022262616,-480.0,0.00023835,3]
[385761534,1758022262633,-480.0,0.00023835,3]
[385761535,1758022262645,-5000.29,0.00023835,3]
[385761536,1758022262665,-2083.27,0.00023835,3]
[385761537,1758022262680,-1738.71,0.00023835,3]
[385761538,1758022262695,-2566.21,0.00023835,3]
[385761539,1758022262709,-782.0,0.00023835,3]
[385761540,1758022262723,-480.0,0.00023835,3]
[385761541,1758022262738,-572.63,0.00023835,3]
[385761542,1758022262754,-480.0,0.00023835,3]
[385761543,1758022262769,-480.0,0.00023835,3]
[385761544,1758022262782,-525.05,0.00023835,3]
[385761545,1758022262797,-1748.53,0.00023835,3]
[385761546,1758022262811,-260.0,0.00023835,3]
[385761547,1758022262825,-480.0,0.00023835,3]
[385761548,1758022262838,-480.0,0.00023835,3]
[385761549,1758022262853,-480.0,0.00023835,3]
[385761550,1758022262865,-1117.15,0.00023835,3]
[385761551,1758022262874,-615.18,0.00023835,3]
[385761552,1758022262884,-480.0,0.00023835,3]
[385761553,1758022262893,-959.69,0.00023835,3]
[385761554,1758022262909,-480.0,0.00023835,3]
[385761555,1758022262918,-480.0,0.00023835,3]
[385761556,1758022262930,-480.0,0.00023835,3]
[385761557,1758022262939,-2394.54,0.00023835,3]
[385761558,1758022262949,-593.79698498,0.00023835,3]
[385761559,1758022262958,-480.0,0.00023835,3]
[385761560,1758022262967,-1011.97,0.00023835,3]
[385761561,1758022262976,-480.0,0.00023835,3]
[385761562,1758022262985,-480.0,0.00023835,3]
[385761563,1758022262995,-553.5,0.00023835,3]
[385761564,1758022263004,-480.0,0.00023835,3]
[385761565,1758022263013,-480.0,0.00023835,3]
[385761566,1758022263023,-480.0,0.00023835,3]
[385761567,1758022263032,-10106.71,0.00023835,3]
[385761568,1758022263042,-480.0,0.00023835,3]
[385761569,1758022263051,-725.12,0.00023835,3]
[385761570,1758022263218,-480.0,0.00023835,3]
[385761571,1758022263243,-480.0,0.00023835,3]
[385761572,1758022263261,-480.0,0.00023835,3]
[385761573,1758022263270,-333.25203896,0.00023835,3]
[385761574,1758022263279,-480.0,0.00023835,3]
[385761575,1758022263289,-480.0,0.00023835,3]
[385761576,1758022263298,-504.22,0.00023835,3]
[385761577,1758022263309,-1154.29,0.00023835,3]
[385761578,1758022263318,-480.0,0.00023835,3]
[385761579,1758022263327,-758.06,0.00023835,3]
[385761580,1758022263337,-480.0,0.00023835,3]
[385761581,1758022263346,-231.82,0.00023835,3]
[385761582,1758022263356,-480.0,0.00023835,3]
[385761583,1758022263365,-480.0,0.00023835,3]
[385761584,1758022263375,-480.0,0.00023835,3]
[385761585,1758022263385,-480.0,0.00023835,3]
[385761586,1758022263395,-786.07,0.00023835,3]
[385761587,1758022263404,-2365.84,0.00023835,3]
[385761588,1758022263413,-480.0,0.00023835,3]
[385761589,1758022263423,-2500.0,0.00023864,2]
[385761590,1758022263434,-2500.0,0.00023864,2]
[385761591,1758022263443,-1000.0,0.000239,2]
[385761592,1758022263456,-1000.0,0.000239,2]
[385761593,1758022263466,-1000.0,0.000239,2]
[385761594,1758022263475,-1000.0,0.000239,2]
[385761595,1758022263484,-1000.0,0.000239,2]
[385761596,1758022263495,-1000.0,0.000239,2]
[385761597,1758022263504,-172.5,0.00023956,3]
[385761598,1758022263514,-160.0,0.00024,7]
[385761599,1758022263523,-61435.62,0.00024,7]
[385761600,1758022263536,-217.86301978,0.00024,7]
[385761601,1758022263547,-217.86301978,0.00024,7]
[385761602,1758022263557,-1000.0,0.00024,2]
[385761603,1758022263566,-1000.0,0.00024,2]
[385761604,1758022263577,-1000.0,0.00024,2]
[385761605,1758022263586,-233.29513139,0.00024,7]
[385761606,1758022263595,-847.61663983,0.00024,7]
[385761607,1758022263605,-847.61663983,0.00024,7]
[385761608,1758022263614,-531.43424302,0.00024,7]
[385761609,1758022263624,-531.43424302,0.00024,7]
[385761610,1758022263633,-179.74835231,0.00024068,2]
[385761611,1758022263642,-157.13118451,0.0002408,3]
[385761612,1758022263651,-155.11806068,0.0002408,3]
[385761613,1758022263661,-166.0,0.0002408,3]
[385761614,1758022263671,-166.0,0.0002408,3]
[385761615,1758022263681,-500.0,0.000241,2]
[385761616,1758022263690,-155.0,0.00024108,2]
[385761617,1758022263699,-150.0,0.00024109,2]
[385761618,1758022263708,-480.0,0.00024109,3]
[385761619,1758022263717,-480.0,0.00024109,3]
[385761620,1758022263726,-480.0,0.00024109,3]
[385761621,1758022263736,-519.76,0.00024109,3]
[385761622,1758022263745,-480.0,0.00024109,3]
[385761623,1758022263754,-480.0,0.00024109,3]
[385761624,1758022263763,-484.43217785,0.00024109,3]
[385761625,1758022263772,-480.0,0.00024109,3]
[385761626,1758022263782,-480.0,0.00024109,3]
[385761627,1758022263791,-318.9507665,0.00024109,3]
[385761628,1758022263801,-480.0,0.00024109,3]
[385761629,1758022263811,-692.04,0.00024109,3]
[385761630,1758022263820,-480.0,0.00024109,3]
[385761631,1758022263830,-379.79,0.00024109,3]
[385761632,1758022263841,-5000.29,0.00024109,3]
[385761633,1758022263850,-2083.27,0.00024109,3]
[385761634,1758022263859,-1738.71,0.00024109,3]
[385761635,1758022263870,-2566.21,0.00024109,3]
[385761636,1758022263879,-782.0,0.00024109,3]
[385761637,1758022263888,-385.88,0.00024109,3]
[385761638,1758022263898,-572.63,0.00024109,3]
[385761639,1758022263907,-594.78,0.00024109,3]
[385761640,1758022263917,-480.0,0.00024109,3]
[385761641,1758022263927,-525.05,0.00024109,3]
[385761642,1758022263937,-1748.53,0.00024109,3]
[385761643,1758022263947,-480.0,0.00024109,3]
[385761644,1758022263956,-480.0,0.00024109,3]
[385761645,1758022263966,-480.0,0.00024109,3]
[385761646,1758022263975,-1117.15,0.00024109,3]
[385761647,1758022263984,-532.35611053,0.00024109,3]
[385761648,1758022311561,-600.0,0.00022354,20]
[385761649,1758022311593,-217.86301978,0.00024,7]
[385761650,1758022311625,-2593.58000933,0.000245,7]
[385761651,1758022311652,-163.049832,0.000245,7]
[385761652,1758022311681,-720.0,0.0002459,20]
[385761653,1758022311708,-200.0,0.00024657,8]
[385761654,1758022311734,-251.63283324,0.00024657,11]
[385761655,1758022311761,-151.0,0.00024658,7]
[385761656,1758022311786,-198.667831,0.00024658,7]
[385761657,1758022311810,-200.0,0.00024658,15]
[385761658,1758022311835,-3805.74,0.000247,7]
[385761659,1758022311867,-199.916,0.00024771,8]
[385761660,1758022311897,-399089.4273351,0.0002478,7]
[385761661,1758022311928,-4106.22,0.000251,7]
[385761662,1758022311958,-3805.74,0.000257,7]
[385761663,1758022311990,-37423.12863222,0.00026,10]
[385761664,1758022312018,-160.0,0.00026,10]
[385761665,1758022312043,-531.43424302,0.00026,10]
[385761666,1758022312067,-160.0,0.00026,10]
[385761667,1758022312091,-233.29513139,0.00026,10]
[385761668,1758022312115,-160.0,0.00026,10]
[385761669,1758022312139,-847.61663983,0.00026,10]
[385761670,1758022312162,-531.43424302,0.00026,10]
[385761671,1758022312187,-217.86301978,0.00026,10]
[385761672,1758022312214,-4106.22,0.000263,7]
[385761673,1758022312240,-196.378904,0.00026301,7]
[385761674,1758022312265,-151.0,0.00026301,7]
[385761675,1758022312290,-153.016597,0.00026301,7]
[385761676,1758022312315,-300.160143,0.000264,7]
[385761677,1758022312339,-151.0,0.000264,7]
[385761678,1758022312363,-151.0,0.000264,7]
[385761679,1758022312387,-151.0,0.000264,7]
[385761680,1758022312411,-151.0,0.000264,7]
[385761681,1758022312436,-151.0,0.000264,7]
[385761682,1758022312463,-3805.74,0.000267,7]
[385761683,1758022312490,-775.90152825,0.00027,14]
[385761684,1758022312632,-864.0,0.00027049,20]
[385761685,1758022312662,-154.87,0.00027419,15]
[385761686,1758022312689,-1326.15,0.00027439,15]
[385761687,1758022312714,-4106.22,0.000275,7]
[385761688,1758022312740,-154.87,0.00027519,15]
[385761689,1758022312766,-1326.15,0.00027539,15]
[385761690,1758022312792,-154.87,0.00027619,15]
[385761691,1758022312819,-1326.15,0.00027639,15]